[Event "RUS-ch Blitz 2021"]
[Site "Sochi"]
[Date "2021.10.11"]
[Round "7.7"]
[White "Vastrukhin, Oleg"]
[Black "Tsydypov, Zhamsaran"]
[Result "1-0"]
[ECO "A24"]
[WhiteElo "2382"]
[BlackElo "2526"]
[Annotator "ChessBase"]
[PlyCount "167"]
[EventDate "2021.10.11"]
[EventType "blitz"]
[EventCountry "RUS"]
[SourceTitle "playchess.com"]
[Source "ChessBase"]
[SourceQuality "1"]
[TimeControl "180+2"]

1. Nf3 {[%emt 0:00:04]} Nf6 {[%emt 0:00:10]} 2. g3 {[%emt 0:00:00]} g6 {
[%emt 0:00:00]} 3. Bg2 {[%emt 0:00:17]} Bg7 {[%emt 0:00:00]} 4. O-O {[%emt 0:
00:00]} O-O {[%emt 0:00:00]} 5. c4 {[%emt 0:00:00]} d6 {[%emt 0:00:00]} 6. Nc3
{[%emt 0:00:00]} e5 {[%emt 0:00:05]} 7. d3 {[%emt 0:00:00]} c6 {[%emt 0:00:25]}
8. Rb1 {[%emt 0:00:08]} Re8 {[%emt 0:00:07]} 9. Bg5 {[%emt 0:00:02]} h6 {
[%emt 0:00:05]} 10. Bxf6 {[%emt 0:00:05]} Bxf6 {[%emt 0:00:00]} 11. b4 {
[%emt 0:00:04]} d5 {[%emt 0:01:01]} 12. cxd5 {[%emt 0:00:13]} cxd5 {[%emt 0:00:
00]} 13. e4 {[%emt 0:00:03]} dxe4 {[%emt 0:00:08]} 14. dxe4 {[%emt 0:00:02]}
Be6 {[%emt 0:00:10]} 15. Nd5 {[%emt 0:00:03]} Bg7 {[%emt 0:00:04]} 16. Rc1 {
[%emt 0:00:25]} Nc6 {[%emt 0:00:14]} 17. b5 {[%emt 0:00:02]} Bxd5 {[%emt 0:00:
00]} 18. exd5 {[%emt 0:00:00]} Nd4 {[%emt 0:00:19]} 19. Nxd4 {[%emt 0:00:05]}
exd4 {[%emt 0:00:00]} 20. Qd3 {[%emt 0:00:23]} Qa5 {[%emt 0:00:20]} 21. d6 {
[%emt 0:00:14]} Rad8 {[%emt 0:00:00]} 22. Rc7 {[%emt 0:00:08]} Rxd6 {[%emt 0:
00:05]} 23. Rxb7 {[%emt 0:00:01]} Qxa2 {[%emt 0:00:06]} 24. h4 {[%emt 0:00:11]}
h5 {[%emt 0:00:05]} 25. Bc6 {[%emt 0:00:24]} Re5 {[%emt 0:00:08]} 26. Rd7 {
[%emt 0:00:36]} Rxd7 {[%emt 0:00:05]} 27. Bxd7 {[%emt 0:00:03]} Rc5 {[%emt 0:
00:02]} 28. Qf3 {[%emt 0:00:08]} Qd5 {[%emt 0:00:09]} 29. Qxd5 {[%emt 0:00:04]}
Rxd5 {[%emt 0:00:00]} 30. Bc6 {[%emt 0:00:03]} Rd6 {[%emt 0:00:00]} 31. Kg2 {
[%emt 0:00:06]} d3 {[%emt 0:00:00]} 32. Rd1 {[%emt 0:00:02]} Bc3 {[%emt 0:00:
02]} 33. Kf3 {[%emt 0:00:03]} d2 {[%emt 0:00:02]} 34. Be4 {[%emt 0:00:06]} Kg7
{[%emt 0:00:00]} 35. Bc2 {[%emt 0:00:01]} Kf6 {[%emt 0:00:04]} 36. Bb3 {
[%emt 0:00:00]} Rd4 {[%emt 0:00:05]} 37. Bc2 {[%emt 0:00:07]} Ke5 {[%emt 0:00:
00]} 38. Ke3 {[%emt 0:00:03]} Rb4 {[%emt 0:00:08]} 39. Kd3 {[%emt 0:00:00]} Bd4
{[%emt 0:00:06]} 40. Rxd2 {[%emt 0:00:00]} Rxb5 {[%emt 0:00:03]} 41. Re2+ {
[%emt 0:00:01]} Kd5 {[%emt 0:00:00]} 42. Kd2 {[%emt 0:00:04]} Kd6 {[%emt 0:00:
02]} 43. Bd3 {[%emt 0:00:03]} Rb3 {[%emt 0:00:00]} 44. Bc4 {[%emt 0:00:01]} Rf3
{[%emt 0:00:01]} 45. Ke1 {[%emt 0:00:03]} a5 {[%emt 0:00:04]} 46. Ra2 {[%emt 0:
00:00]} Rf5 {[%emt 0:00:03]} 47. Bd3 {[%emt 0:00:01]} Re5+ {[%emt 0:00:02]} 48.
Kf1 {[%emt 0:00:01]} Bc3 {[%emt 0:00:00]} 49. Bc4 {[%emt 0:00:06]} Rf5 {
[%emt 0:00:03]} 50. Bd3 {[%emt 0:00:00]} Rc5 {[%emt 0:00:03]} 51. Bc2 {[%emt 0:
00:03]} Ke7 {[%emt 0:00:01]} 52. Ba4 {[%emt 0:00:00]} Kf6 {[%emt 0:00:04]} 53.
Ke2 {[%emt 0:00:00]} Bd4 {[%emt 0:00:02]} 54. Kd3 {[%emt 0:00:04]} Be5 {
[%emt 0:00:00]} 55. Ke2 {[%emt 0:00:02]} Rc4 {[%emt 0:00:06]} 56. Bb3 {[%emt 0:
00:00]} Rc5 {[%emt 0:00:01]} 57. Ba4 {[%emt 0:00:05]} Bc3 {[%emt 0:00:00]} 58.
Kd3 {[%emt 0:00:00]} Bb4 {[%emt 0:00:01]} 59. Ke2 {[%emt 0:00:02]} Ke5 {
[%emt 0:00:00]} 60. Bb3 {[%emt 0:00:02]} f6 {[%emt 0:00:00]} 61. Bf7 {[%emt 0:
00:02]} Kf5 {[%emt 0:00:02]} 62. Kf3 {[%emt 0:00:03]} Rc3+ {[%emt 0:00:01]} 63.
Kg2 {[%emt 0:00:01]} Rc7 {[%emt 0:00:03]} 64. Be8 {[%emt 0:00:01]} Re7 {
[%emt 0:00:02]} 65. Ba4 {[%emt 0:00:02]} g5 {[%emt 0:00:03]} 66. Bc2+ {[%emt 0:
00:00]} Ke5 {[%emt 0:00:01]} 67. Bd1 {[%emt 0:00:02]} g4 {[%emt 0:00:04]} 68.
Re2+ {[%emt 0:00:00]} Kd4 {[%emt 0:00:03]} 69. Rxe7 {[%emt 0:00:03]} Bxe7 {
[%emt 0:00:01]} 70. Ba4 {[%emt 0:00:02]} Kc3 {[%emt 0:00:01]} 71. Be8 {[%emt 0:
00:02]} Kb2 {[%emt 0:00:06]} 72. Bxh5 {[%emt 0:00:02]} a4 {[%emt 0:00:04]} 73.
Bxg4 {[%emt 0:00:01]} a3 {[%emt 0:00:02]} 74. Be6 {[%emt 0:00:00]} f5 {[%emt 0:
00:00]} 75. Kf3 {[%emt 0:00:04]} Bc5 {[%emt 0:00:02]} 76. h5 {[%emt 0:00:01]}
Bd4 {[%emt 0:00:04]} 77. h6 {[%emt 0:00:01]} Be5 {[%emt 0:00:04]} 78. h7 {
[%emt 0:00:02]} a2 {[%emt 0:00:01]} 79. Bxa2 {[%emt 0:00:02]} Kxa2 {[%emt 0:00:
00]} 80. g4 {[%emt 0:00:06]} fxg4+ {[%emt 0:00:00]} 81. Kxg4 {[%emt 0:00:00]}
Kb3 {[%emt 0:00:01]} 82. Kf5 {[%emt 0:00:01]} Bh8 {[%emt 0:00:06]} 83. Ke6 {
[%emt 0:00:00]} Kc4 {[%emt 0:00:00]} 84. f4 {[%emt 0:00:03]} 1-0

[Event "RUS-ch Blitz 2021"]
[Site "Sochi"]
[Date "2021.10.11"]
[Round "7.8"]
[White "Moiseenko, Vadim"]
[Black "Alekseev, Evgeny"]
[Result "0-1"]
[ECO "A36"]
[WhiteElo "2542"]
[BlackElo "2602"]
[Annotator "ChessBase"]
[PlyCount "94"]
[EventDate "2021.10.11"]
[EventType "blitz"]
[EventCountry "RUS"]
[SourceTitle "playchess.com"]
[Source "ChessBase"]
[SourceQuality "1"]
[TimeControl "180+2"]

1. Nf3 {[%emt 0:00:00]} c5 {[%emt 0:00:00]} 2. g3 {[%emt 0:00:09]} Nc6 {
[%emt 0:00:01]} 3. c4 {[%emt 0:00:00]} g6 {[%emt 0:00:23]} 4. Bg2 {[%emt 0:00:
00]} Bg7 {[%emt 0:00:00]} 5. O-O {[%emt 0:00:00]} e6 {[%emt 0:00:00]} 6. Nc3 {
[%emt 0:00:00]} d6 {[%emt 0:00:00]} 7. d3 {[%emt 0:00:24]} Nge7 {[%emt 0:00:00]
} 8. e4 {[%emt 0:00:11]} O-O {[%emt 0:00:12]} 9. Be3 {[%emt 0:00:00]} Nd4 {
[%emt 0:00:00]} 10. a3 {[%emt 0:00:00]} b6 {[%emt 0:00:08]} 11. Rb1 {[%emt 0:
00:12]} Bb7 {[%emt 0:00:07]} 12. Qd2 {[%emt 0:00:06]} Qd7 {[%emt 0:00:11]} 13.
b4 {[%emt 0:00:04]} Nec6 {[%emt 0:00:29]} 14. Bh6 {[%emt 0:00:21]} Nxf3+ {
[%emt 0:00:33]} 15. Bxf3 {[%emt 0:00:01]} Ne5 {[%emt 0:00:00]} 16. Be2 {
[%emt 0:00:07]} f5 {[%emt 0:00:05]} 17. Bxg7 {[%emt 0:00:18]} Qxg7 {[%emt 0:00:
00]} 18. f4 {[%emt 0:00:00]} Nc6 {[%emt 0:00:00]} 19. Bf3 {[%emt 0:00:02]} Nd4
{[%emt 0:00:08]} 20. Bg2 {[%emt 0:00:00]} Rae8 {[%emt 0:00:04]} 21. Ne2 {
[%emt 0:00:18]} Nxe2+ {[%emt 0:00:11]} 22. Qxe2 {[%emt 0:00:00]} e5 {[%emt 0:
00:03]} 23. Rbe1 {[%emt 0:00:54]} exf4 {[%emt 0:00:24]} 24. Rxf4 {[%emt 0:00:
00]} fxe4 {[%emt 0:00:19]} 25. Rxf8+ {[%emt 0:00:11]} Qxf8 {[%emt 0:00:13]} 26.
Bxe4 {[%emt 0:00:00]} Bxe4 {[%emt 0:00:00]} 27. dxe4 {[%emt 0:00:06]} Qf6 {
[%emt 0:00:02]} 28. Qd3 {[%emt 0:00:00]} Qe5 {[%emt 0:00:00]} 29. Kg2 {[%emt 0:
00:03]} Kg7 {[%emt 0:00:05]} 30. Re2 {[%emt 0:00:00]} Re6 {[%emt 0:00:07]} 31.
Qe3 {[%emt 0:00:25]} h5 {[%emt 0:00:00]} 32. Qf4 {[%emt 0:00:04]} g5 {[%emt 0:
00:10]} 33. Qxe5+ {[%emt 0:00:10]} Rxe5 {[%emt 0:00:00]} 34. Kf3 {[%emt 0:00:
00]} Kf6 {[%emt 0:00:11]} 35. Rd2 {[%emt 0:00:00]} Ke6 {[%emt 0:00:00]} 36. h4
{[%emt 0:00:00]} Ke7 {[%emt 0:00:02]} 37. Rd5 {[%emt 0:00:01]} Rxd5 {[%emt 0:
00:00]} 38. exd5 {[%emt 0:00:07]} gxh4 {[%emt 0:00:08]} 39. gxh4 {[%emt 0:00:
00]} cxb4 {[%emt 0:00:00]} 40. axb4 {[%emt 0:00:00]} a5 {[%emt 0:00:00]} 41.
bxa5 {[%emt 0:00:00]} bxa5 {[%emt 0:00:00]} 42. Ke4 {[%emt 0:00:00]} a4 {
[%emt 0:00:00]} 43. Kd4 {[%emt 0:00:00]} Kf6 {[%emt 0:00:00]} 44. c5 {[%emt 0:
00:00]} dxc5+ {[%emt 0:00:00]} 45. Kxc5 {[%emt 0:00:00]} a3 {[%emt 0:00:00]}
46. Kc6 {[%emt 0:00:00]} a2 {[%emt 0:00:00]} 47. d6 {[%emt 0:00:00]} a1=Q {
[%emt 0:00:00]} 0-1

[Event "RUS-ch Blitz 2021"]
[Site "Sochi"]
[Date "2021.10.11"]
[Round "7.9"]
[White "Kobalia, Mikhail"]
[Black "Oganian, Miran"]
[Result "1/2-1/2"]
[ECO "B51"]
[WhiteElo "2600"]
[BlackElo "2441"]
[Annotator "ChessBase"]
[PlyCount "113"]
[EventDate "2021.10.11"]
[EventType "blitz"]
[EventCountry "RUS"]
[SourceTitle "playchess.com"]
[Source "ChessBase"]
[SourceQuality "1"]
[TimeControl "180+2"]

1. e4 {[%emt 0:00:00]} c5 {[%emt 0:00:04]} 2. Nf3 {[%emt 0:00:02]} Nc6 {
[%emt 0:00:00]} 3. Bb5 {[%emt 0:00:00]} d6 {[%emt 0:00:06]} 4. O-O {[%emt 0:00:
02]} Bd7 {[%emt 0:00:00]} 5. Re1 {[%emt 0:00:00]} Nf6 {[%emt 0:00:00]} 6. c3 {
[%emt 0:00:17]} a6 {[%emt 0:00:00]} 7. Bf1 {[%emt 0:00:00]} Bg4 {[%emt 0:00:00]
} 8. h3 {[%emt 0:00:00]} Bxf3 {[%emt 0:00:00]} 9. Qxf3 {[%emt 0:00:00]} e6 {
[%emt 0:00:05]} 10. d3 {[%emt 0:00:00]} Be7 {[%emt 0:00:00]} 11. Nd2 {[%emt 0:
00:03]} O-O {[%emt 0:00:00]} 12. Qe2 {[%emt 0:00:05]} d5 {[%emt 0:00:01]} 13.
Nf3 {[%emt 0:00:07]} b5 {[%emt 0:00:11]} 14. Bg5 {[%emt 0:00:49]} Re8 {[%emt 0:
00:09]} 15. Rad1 {[%emt 0:00:00]} dxe4 {[%emt 0:00:26]} 16. dxe4 {[%emt 0:00:
00]} Qa5 {[%emt 0:00:12]} 17. a3 {[%emt 0:00:02]} c4 {[%emt 0:00:12]} 18. g3 {
[%emt 0:00:12]} Rad8 {[%emt 0:00:10]} 19. Bg2 {[%emt 0:00:11]} h6 {[%emt 0:00:
21]} 20. Bxf6 {[%emt 0:00:16]} Bxf6 {[%emt 0:00:00]} 21. e5 {[%emt 0:00:00]}
Be7 {[%emt 0:00:00]} 22. Nd2 {[%emt 0:00:04]} Qc7 {[%emt 0:00:17]} 23. Kh2 {
[%emt 0:00:18]} Rd7 {[%emt 0:00:03]} 24. Nf3 {[%emt 0:00:24]} Red8 {[%emt 0:00:
11]} 25. Rxd7 {[%emt 0:00:00]} Qxd7 {[%emt 0:00:03]} 26. h4 {[%emt 0:00:06]}
Bc5 {[%emt 0:00:01]} 27. Kg1 {[%emt 0:00:04]} Ne7 {[%emt 0:00:12]} 28. Rc1 {
[%emt 0:00:05]} Nf5 {[%emt 0:00:22]} 29. Kf1 {[%emt 0:00:00]} Qc7 {[%emt 0:00:
20]} 30. Rd1 {[%emt 0:00:05]} Ne7 {[%emt 0:00:13]} 31. Rxd8+ {[%emt 0:00:03]}
Qxd8 {[%emt 0:00:00]} 32. Qd2 {[%emt 0:00:04]} Qc7 {[%emt 0:00:00]} 33. Qe2 {
[%emt 0:00:03]} Bb6 {[%emt 0:00:09]} 34. h5 {[%emt 0:00:22]} Nc6 {[%emt 0:00:
05]} 35. Qe4 {[%emt 0:00:00]} Ba7 {[%emt 0:00:08]} 36. Kg1 {[%emt 0:00:07]} Bb8
{[%emt 0:00:00]} 37. Kf1 {[%emt 0:00:04]} Nxe5 {[%emt 0:00:11]} 38. Nxe5 {
[%emt 0:00:00]} Qxe5 {[%emt 0:00:00]} 39. Qb7 {[%emt 0:00:13]} a5 {[%emt 0:00:
06]} 40. Bc6 {[%emt 0:00:05]} b4 {[%emt 0:00:00]} 41. axb4 {[%emt 0:00:06]}
axb4 {[%emt 0:00:00]} 42. Qxb4 {[%emt 0:00:00]} Bd6 {[%emt 0:00:06]} 43. Qxc4 {
[%emt 0:00:00]} Qxh5 {[%emt 0:00:01]} 44. Be4 {[%emt 0:00:09]} Qd1+ {[%emt 0:
00:00]} 45. Kg2 {[%emt 0:00:00]} Kf8 {[%emt 0:00:00]} 46. Qc8+ {[%emt 0:00:02]}
Ke7 {[%emt 0:00:00]} 47. Qb7+ {[%emt 0:00:00]} Kf6 {[%emt 0:00:04]} 48. Bf3 {
[%emt 0:00:06]} Qd2 {[%emt 0:00:00]} 49. Qb6 {[%emt 0:00:00]} Be5 {[%emt 0:00:
09]} 50. Qb4 {[%emt 0:00:00]} g6 {[%emt 0:00:02]} 51. Qh4+ {[%emt 0:00:04]} Kg7
{[%emt 0:00:00]} 52. Qb4 {[%emt 0:00:00]} h5 {[%emt 0:00:03]} 53. Qb5 {[%emt 0:
00:00]} Bf6 {[%emt 0:00:02]} 54. Qb4 {[%emt 0:00:04]} Be5 {[%emt 0:00:00]} 55.
Qb5 {[%emt 0:00:01]} Bf6 {[%emt 0:00:00]} 56. Qb4 {[%emt 0:00:01]} Be5 {
[%emt 0:00:04]} 57. Qb5 {[%emt 0:00:02]} 1/2-1/2

[Event "RUS-ch Blitz 2021"]
[Site "Sochi"]
[Date "2021.10.11"]
[Round "7.10"]
[White "Popov, Valerij"]
[Black "Makarian, Rudik"]
[Result "1/2-1/2"]
[ECO "D27"]
[WhiteElo "2537"]
[BlackElo "2470"]
[Annotator "ChessBase"]
[PlyCount "35"]
[EventDate "2021.10.11"]
[EventType "blitz"]
[EventCountry "RUS"]
[SourceTitle "playchess.com"]
[Source "ChessBase"]
[SourceQuality "1"]
[TimeControl "180+2"]

1. Nf3 {[%emt 0:00:04]} d5 {[%emt 0:00:00]} 2. d4 {[%emt 0:00:00]} Nf6 {
[%emt 0:00:10]} 3. c4 {[%emt 0:00:00]} e6 {[%emt 0:00:00]} 4. e3 {[%emt 0:00:
00]} dxc4 {[%emt 0:00:07]} 5. Bxc4 {[%emt 0:00:01]} a6 {[%emt 0:00:00]} 6. O-O
{[%emt 0:00:00]} c5 {[%emt 0:00:08]} 7. dxc5 {[%emt 0:00:12]} Bxc5 {[%emt 0:00:
02]} 8. Qxd8+ {[%emt 0:00:06]} Kxd8 {[%emt 0:00:00]} 9. Be2 {[%emt 0:00:02]}
Nc6 {[%emt 0:00:14]} 10. Bd2 {[%emt 0:00:19]} Ne4 {[%emt 0:00:12]} 11. Rc1 {
[%emt 0:00:04]} Nxd2 {[%emt 0:00:12]} 12. Rxc5 {[%emt 0:00:09]} Ne4 {[%emt 0:
00:20]} 13. Rc2 {[%emt 0:00:15]} Ke7 {[%emt 0:00:03]} 14. Nbd2 {[%emt 0:00:07]}
Nxd2 {[%emt 0:00:00]} 15. Rxd2 {[%emt 0:00:00]} Bd7 {[%emt 0:00:06]} 16. Ng5 {
[%emt 0:00:12]} Rhd8 {[%emt 0:00:37]} 17. Rad1 {[%emt 0:00:05]} Be8 {[%emt 0:
00:03]} 18. a3 {[%emt 0:00:17]} 1/2-1/2

[Event "RUS-ch Blitz 2021"]
[Site "Sochi"]
[Date "2021.10.11"]
[Round "7.11"]
[White "Petrov, Nikita"]
[Black "Nazaretyan, Tigran"]
[Result "1-0"]
[ECO "A57"]
[WhiteElo "2539"]
[BlackElo "2316"]
[Annotator "ChessBase"]
[PlyCount "83"]
[EventDate "2021.10.11"]
[EventType "blitz"]
[EventCountry "RUS"]
[SourceTitle "playchess.com"]
[Source "ChessBase"]
[SourceQuality "1"]
[TimeControl "180+2"]

1. d4 {[%emt 0:00:04]} Nf6 {[%emt 0:00:00]} 2. c4 {[%emt 0:00:00]} c5 {[%emt 0:
00:00]} 3. d5 {[%emt 0:00:06]} b5 {[%emt 0:00:04]} 4. Qc2 {[%emt 0:00:00]} g6 {
[%emt 0:00:10]} 5. e4 {[%emt 0:00:00]} d6 {[%emt 0:00:00]} 6. cxb5 {[%emt 0:00:
00]} a6 {[%emt 0:00:00]} 7. Nc3 {[%emt 0:00:13]} Bg7 {[%emt 0:00:00]} 8. a4 {
[%emt 0:00:00]} O-O {[%emt 0:00:00]} 9. Nf3 {[%emt 0:00:00]} Qa5 {[%emt 0:00:
03]} 10. Bd2 {[%emt 0:00:07]} axb5 {[%emt 0:00:00]} 11. Bxb5 {[%emt 0:00:02]}
Ba6 {[%emt 0:00:03]} 12. O-O {[%emt 0:00:09]} Nbd7 {[%emt 0:00:25]} 13. Rfe1 {
[%emt 0:00:22]} Bxb5 {[%emt 0:00:28]} 14. Nxb5 {[%emt 0:00:00]} Qb6 {[%emt 0:
00:00]} 15. Bc3 {[%emt 0:00:05]} Rfb8 {[%emt 0:00:03]} 16. Nd2 {[%emt 0:00:03]}
Rb7 {[%emt 0:00:18]} 17. Nc4 {[%emt 0:00:07]} Qa6 {[%emt 0:00:00]} 18. Na5 {
[%emt 0:00:17]} Rxb5 {[%emt 0:00:27]} 19. axb5 {[%emt 0:00:00]} Qxb5 {[%emt 0:
00:00]} 20. Qa4 {[%emt 0:00:03]} Qxa4 {[%emt 0:00:03]} 21. Rxa4 {[%emt 0:00:04]
} Nb6 {[%emt 0:00:08]} 22. Raa1 {[%emt 0:00:00]} e6 {[%emt 0:00:19]} 23. Nc4 {
[%emt 0:00:25]} Rxa1 {[%emt 0:00:41]} 24. Rxa1 {[%emt 0:00:00]} Nfd7 {[%emt 0:
00:28]} 25. Nxb6 {[%emt 0:00:10]} Nxb6 {[%emt 0:00:00]} 26. Bxg7 {[%emt 0:00:
22]} Kxg7 {[%emt 0:00:01]} 27. Ra6 {[%emt 0:00:05]} Nc4 {[%emt 0:00:05]} 28. b3
{[%emt 0:00:14]} Nd2 {[%emt 0:00:03]} 29. dxe6 {[%emt 0:00:00]} fxe6 {[%emt 0:
00:03]} 30. Rxd6 {[%emt 0:00:05]} Nxb3 {[%emt 0:00:00]} 31. Rxe6 {[%emt 0:00:
00]} c4 {[%emt 0:00:04]} 32. Rc6 {[%emt 0:00:07]} Nd2 {[%emt 0:00:00]} 33. f3 {
[%emt 0:00:00]} Kf7 {[%emt 0:00:05]} 34. Kf2 {[%emt 0:00:00]} Ke7 {[%emt 0:00:
00]} 35. Ke2 {[%emt 0:00:08]} Kd7 {[%emt 0:00:08]} 36. Rc5 {[%emt 0:00:00]} Nb3
{[%emt 0:00:01]} 37. Rxc4 {[%emt 0:00:12]} Ke6 {[%emt 0:00:00]} 38. Ke3 {
[%emt 0:00:03]} g5 {[%emt 0:00:02]} 39. g3 {[%emt 0:00:00]} h5 {[%emt 0:00:01]}
40. Rc6+ {[%emt 0:00:01]} Kf7 {[%emt 0:00:04]} 41. Rh6 {[%emt 0:00:05]} h4 {
[%emt 0:00:03]} 42. gxh4 {[%emt 0:00:05]} 1-0

[Event "RUS-ch Blitz 2021"]
[Site "Sochi"]
[Date "2021.10.11"]
[Round "7.12"]
[White "Riazantsev, Alexander"]
[Black "Zakhartsov, Vladimir"]
[Result "1-0"]
[ECO "D91"]
[WhiteElo "2634"]
[BlackElo "2514"]
[Annotator "ChessBase"]
[PlyCount "69"]
[EventDate "2021.10.11"]
[EventType "blitz"]
[EventCountry "RUS"]
[SourceTitle "playchess.com"]
[Source "ChessBase"]
[SourceQuality "1"]
[TimeControl "180+2"]

1. d4 {[%emt 0:00:00]} Nf6 {[%emt 0:00:04]} 2. Nf3 {[%emt 0:00:01]} g6 {
[%emt 0:00:00]} 3. c4 {[%emt 0:00:10]} Bg7 {[%emt 0:00:00]} 4. Nc3 {[%emt 0:00:
00]} d5 {[%emt 0:00:00]} 5. Bg5 {[%emt 0:00:00]} Ne4 {[%emt 0:00:00]} 6. cxd5 {
[%emt 0:00:06]} Nxg5 {[%emt 0:00:03]} 7. Nxg5 {[%emt 0:00:00]} e6 {[%emt 0:00:
00]} 8. Qd2 {[%emt 0:00:00]} h6 {[%emt 0:00:00]} 9. Nf3 {[%emt 0:00:00]} exd5 {
[%emt 0:00:15]} 10. e3 {[%emt 0:00:00]} O-O {[%emt 0:00:00]} 11. Bd3 {[%emt 0:
00:00]} c6 {[%emt 0:00:01]} 12. h3 {[%emt 0:00:05]} Nd7 {[%emt 0:00:00]} 13.
O-O {[%emt 0:00:02]} a5 {[%emt 0:00:09]} 14. Ne2 {[%emt 0:00:03]} Re8 {[%emt 0:
00:05]} 15. Nf4 {[%emt 0:00:00]} Nf8 {[%emt 0:00:03]} 16. Rac1 {[%emt 0:00:31]}
Qd6 {[%emt 0:00:04]} 17. Bb1 {[%emt 0:00:08]} Be6 {[%emt 0:00:22]} 18. a3 {
[%emt 0:00:12]} Nd7 {[%emt 0:00:07]} 19. Nd3 {[%emt 0:00:05]} b6 {[%emt 0:00:
05]} 20. Nfe5 {[%emt 0:00:21]} Nxe5 {[%emt 0:00:07]} 21. Nxe5 {[%emt 0:00:16]}
c5 {[%emt 0:00:17]} 22. f4 {[%emt 0:00:00]} Rac8 {[%emt 0:00:09]} 23. Bd3 {
[%emt 0:00:00]} Rc7 {[%emt 0:00:23]} 24. Kh1 {[%emt 0:00:29]} Rec8 {[%emt 0:00:
02]} 25. Rce1 {[%emt 0:00:00]} Re7 {[%emt 0:00:21]} 26. g4 {[%emt 0:00:00]} Bd7
{[%emt 0:00:08]} 27. h4 {[%emt 0:00:11]} Ba4 {[%emt 0:00:45]} 28. g5 {[%emt 0:
00:14]} hxg5 {[%emt 0:00:02]} 29. hxg5 {[%emt 0:00:01]} Bxe5 {[%emt 0:00:19]}
30. fxe5 {[%emt 0:00:10]} Qd7 {[%emt 0:00:00]} 31. Qh2 {[%emt 0:00:12]} cxd4 {
[%emt 0:00:06]} 32. exd4 {[%emt 0:00:01]} Qg4 {[%emt 0:00:07]} 33. Rf4 {
[%emt 0:00:11]} Qh5 {[%emt 0:00:00]} 34. Rh4 {[%emt 0:00:09]} Qf3+ {[%emt 0:00:
04]} 35. Kg1 {[%emt 0:00:00]} 1-0

[Event "RUS-ch Blitz 2021"]
[Site "Sochi"]
[Date "2021.10.11"]
[Round "7.13"]
[White "Bocharov, Dmitry"]
[Black "Khanin, Semen"]
[Result "1/2-1/2"]
[ECO "E11"]
[WhiteElo "2517"]
[BlackElo "2521"]
[Annotator "ChessBase"]
[PlyCount "78"]
[EventDate "2021.10.11"]
[EventType "blitz"]
[EventCountry "RUS"]
[SourceTitle "playchess.com"]
[Source "ChessBase"]
[SourceQuality "1"]
[TimeControl "180+2"]

1. d4 {[%emt 0:00:03]} Nf6 {[%emt 0:00:00]} 2. c4 {[%emt 0:00:10]} e6 {[%emt 0:
00:01]} 3. Nf3 {[%emt 0:00:00]} d5 {[%emt 0:00:00]} 4. g3 {[%emt 0:00:00]} Bb4+
{[%emt 0:00:13]} 5. Bd2 {[%emt 0:00:00]} Be7 {[%emt 0:00:08]} 6. Bg2 {[%emt 0:
00:00]} Nbd7 {[%emt 0:00:00]} 7. O-O {[%emt 0:00:06]} O-O {[%emt 0:00:02]} 8.
Qc2 {[%emt 0:00:00]} c6 {[%emt 0:00:07]} 9. a4 {[%emt 0:00:01]} a5 {[%emt 0:00:
01]} 10. Na3 {[%emt 0:00:14]} h6 {[%emt 0:00:06]} 11. Rfc1 {[%emt 0:00:15]} Ne4
{[%emt 0:00:14]} 12. Be3 {[%emt 0:00:00]} f5 {[%emt 0:00:28]} 13. Ne1 {[%emt 0:
00:03]} g5 {[%emt 0:00:21]} 14. Nd3 {[%emt 0:00:02]} Bd6 {[%emt 0:00:17]} 15.
f3 {[%emt 0:00:08]} Nef6 {[%emt 0:00:02]} 16. Bf2 {[%emt 0:00:10]} Qe7 {
[%emt 0:00:00]} 17. Nb1 {[%emt 0:00:24]} h5 {[%emt 0:00:56]} 18. Nd2 {[%emt 0:
00:47]} Rf7 {[%emt 0:00:17]} 19. e4 {[%emt 0:00:06]} fxe4 {[%emt 0:00:03]} 20.
fxe4 {[%emt 0:00:00]} Ng4 {[%emt 0:00:00]} 21. e5 {[%emt 0:00:05]} Bb4 {
[%emt 0:00:05]} 22. cxd5 {[%emt 0:00:24]} cxd5 {[%emt 0:00:03]} 23. Nf3 {
[%emt 0:00:00]} Nxf2 {[%emt 0:00:08]} 24. Nxf2 {[%emt 0:00:04]} Nf8 {[%emt 0:
00:05]} 25. Nd3 {[%emt 0:00:04]} Bd7 {[%emt 0:00:02]} 26. Nxb4 {[%emt 0:00:07]}
axb4 {[%emt 0:00:00]} 27. b3 {[%emt 0:00:24]} Rc8 {[%emt 0:00:00]} 28. Qd2 {
[%emt 0:00:00]} Rxc1+ {[%emt 0:00:00]} 29. Rxc1 {[%emt 0:00:00]} g4 {[%emt 0:
00:00]} 30. Ne1 {[%emt 0:00:00]} Ng6 {[%emt 0:00:08]} 31. Nd3 {[%emt 0:00:00]}
Kg7 {[%emt 0:00:03]} 32. Qxb4 {[%emt 0:00:00]} Qd8 {[%emt 0:00:02]} 33. Qd6 {
[%emt 0:00:06]} h4 {[%emt 0:00:04]} 34. Nc5 {[%emt 0:00:00]} Qg5 {[%emt 0:00:
01]} 35. Rf1 {[%emt 0:00:10]} Qe3+ {[%emt 0:00:03]} 36. Kh1 {[%emt 0:00:00]}
Rxf1+ {[%emt 0:00:00]} 37. Bxf1 {[%emt 0:00:04]} Qf3+ {[%emt 0:00:04]} 38. Kg1
{[%emt 0:00:00]} Qe3+ {[%emt 0:00:02]} 39. Kh1 {[%emt 0:00:02]} Qf3+ {[%emt 0:
00:08]} 1/2-1/2

[Event "RUS-ch Blitz 2021"]
[Site "Sochi"]
[Date "2021.10.11"]
[Round "7.14"]
[White "Gutenev, Alexander"]
[Black "Demidov, Mikhail"]
[Result "1/2-1/2"]
[ECO "B03"]
[WhiteElo "2455"]
[BlackElo "2551"]
[Annotator "ChessBase"]
[PlyCount "83"]
[EventDate "2021.10.11"]
[EventType "blitz"]
[EventCountry "RUS"]
[SourceTitle "playchess.com"]
[Source "ChessBase"]
[SourceQuality "1"]
[TimeControl "180+2"]

1. e4 {[%emt 0:00:05]} Nf6 {[%emt 0:00:00]} 2. e5 {[%emt 0:00:00]} Nd5 {
[%emt 0:00:00]} 3. d4 {[%emt 0:00:00]} d6 {[%emt 0:00:11]} 4. c4 {[%emt 0:00:
01]} Nb6 {[%emt 0:00:00]} 5. exd6 {[%emt 0:00:00]} exd6 {[%emt 0:00:00]} 6. Nc3
{[%emt 0:00:00]} Be7 {[%emt 0:00:00]} 7. Bd3 {[%emt 0:00:00]} Nc6 {[%emt 0:00:
04]} 8. Nge2 {[%emt 0:00:04]} Bg5 {[%emt 0:00:00]} 9. O-O {[%emt 0:00:09]} O-O
{[%emt 0:00:06]} 10. b3 {[%emt 0:00:09]} Re8 {[%emt 0:00:05]} 11. d5 {[%emt 0:
00:11]} Bxc1 {[%emt 0:00:10]} 12. Rxc1 {[%emt 0:00:07]} Ne5 {[%emt 0:00:00]}
13. Bb1 {[%emt 0:00:09]} a6 {[%emt 0:00:53]} 14. h3 {[%emt 0:00:16]} Nbd7 {
[%emt 0:00:13]} 15. Ng3 {[%emt 0:00:13]} Nf6 {[%emt 0:00:01]} 16. Re1 {[%emt 0:
00:27]} Bd7 {[%emt 0:00:11]} 17. Qd4 {[%emt 0:00:23]} Qb8 {[%emt 0:00:28]} 18.
Re3 {[%emt 0:00:27]} Qa7 {[%emt 0:00:10]} 19. Qd2 {[%emt 0:00:12]} Ng6 {
[%emt 0:00:15]} 20. Rce1 {[%emt 0:00:00]} Rxe3 {[%emt 0:00:06]} 21. Rxe3 {
[%emt 0:00:01]} Rf8 {[%emt 0:00:12]} 22. Nf5 {[%emt 0:00:10]} Bxf5 {[%emt 0:00:
03]} 23. Bxf5 {[%emt 0:00:04]} Ne5 {[%emt 0:00:08]} 24. Kh2 {[%emt 0:00:11]} g6
{[%emt 0:00:17]} 25. Bc2 {[%emt 0:00:00]} Re8 {[%emt 0:00:03]} 26. Qe2 {
[%emt 0:00:06]} h5 {[%emt 0:00:06]} 27. Kh1 {[%emt 0:00:06]} Qb8 {[%emt 0:00:
09]} 28. f4 {[%emt 0:00:07]} Ned7 {[%emt 0:00:00]} 29. f5 {[%emt 0:00:02]} Rxe3
{[%emt 0:00:05]} 30. Qxe3 {[%emt 0:00:00]} Ne5 {[%emt 0:00:00]} 31. Qg5 {
[%emt 0:00:10]} Kg7 {[%emt 0:00:00]} 32. Ne2 {[%emt 0:00:04]} Nh7 {[%emt 0:00:
03]} 33. Qg3 {[%emt 0:00:04]} Qd8 {[%emt 0:00:02]} 34. fxg6 {[%emt 0:00:03]} h4
{[%emt 0:00:04]} 35. Qf2 {[%emt 0:00:07]} fxg6 {[%emt 0:00:00]} 36. Nf4 {
[%emt 0:00:00]} Nf8 {[%emt 0:00:03]} 37. Be4 {[%emt 0:00:05]} Qf6 {[%emt 0:00:
03]} 38. Kg1 {[%emt 0:00:00]} b6 {[%emt 0:00:00]} 39. Ne2 {[%emt 0:00:03]}
Qxf2+ {[%emt 0:00:00]} 40. Kxf2 {[%emt 0:00:00]} g5 {[%emt 0:00:04]} 41. Ke3 {
[%emt 0:00:01]} Kf6 {[%emt 0:00:00]} 42. Nd4 {[%emt 0:00:04]} 1/2-1/2